[Event "*** Biggest EVER Titled Tuesday"]
[Site "Chess.com"]
[Date "2018.04.17"]
[Round "10"]
[White "GMKrikor"]
[Black "daro94"]
[Result "0-1"]
[WhiteElo "2635"]
[BlackElo "2721"]
[TimeControl "180+2"]
[EndTime "15:22:36 PDT"]
[Termination "daro94 won by resignation"]

1. e4 {[%clk 0:03:00]} 1... c5 {[%clk 0:03:00.5]} 2. Nf3 {[%clk 0:03:00.7]} 2...
d6 {[%clk 0:03:02]} 3. d4 {[%clk 0:03:01.4]} 3... cxd4 {[%clk 0:03:03.9]} 4.
Nxd4 {[%clk 0:03:02.9]} 4... Nf6 {[%clk 0:03:05.4]} 5. Nc3 {[%clk 0:03:04.4]}
5... a6 {[%clk 0:03:06.9]} 6. Be3 {[%clk 0:02:58.4]} 6... e5 {[%clk 0:03:07.8]}
7. Nb3 {[%clk 0:02:57.3]} 7... Be6 {[%clk 0:03:08.7]} 8. f3 {[%clk 0:02:57.8]}
8... h5 {[%clk 0:03:08.9]} 9. Qd2 {[%clk 0:02:59]} 9... Nbd7 {[%clk 0:03:09.4]}
10. Be2 {[%clk 0:02:56.6]} 10... Rc8 {[%clk 0:02:55.9]} 11. O-O-O {[%clk
0:02:45.5]} 11... Be7 {[%clk 0:02:55.7]} 12. Kb1 {[%clk 0:02:46.1]} 12... Nb6
{[%clk 0:02:26.1]} 13. h3 {[%clk 0:02:29.3]} 13... h4 {[%clk 0:02:26.6]} 14. f4
{[%clk 0:02:10.3]} 14... Nc4 {[%clk 0:02:25]} 15. Bxc4 {[%clk 0:02:09.6]} 15...
Rxc4 {[%clk 0:02:22.2]} 16. fxe5 {[%clk 0:01:45.9]} 16... dxe5 {[%clk
0:02:22.1]} 17. Qxd8+ {[%clk 0:01:14.7]} 17... Bxd8 {[%clk 0:02:24]} 18. Nc5
{[%clk 0:01:11.4]} 18... Bc8 {[%clk 0:02:25.2]} 19. Rhe1 {[%clk 0:00:55.8]}
19... Ba5 {[%clk 0:02:15.3]} 20. Nd3 {[%clk 0:00:44.7]} 20... Bxc3 {[%clk
0:01:24]} 21. bxc3 {[%clk 0:00:44.7]} 21... Nxe4 {[%clk 0:01:12.9]} 22. Bd4
{[%clk 0:00:29.6]} 22... Nxc3+ {[%clk 0:00:19.8]} 23. Bxc3 {[%clk 0:00:30.2]}
23... Rxc3 {[%clk 0:00:21.3]} 24. Rxe5+ {[%clk 0:00:31.8]} 24... Be6 {[%clk
0:00:22.6]} 25. Nc5 {[%clk 0:00:33.4]} 25... O-O {[%clk 0:00:07.8]} 26. Nxe6
{[%clk 0:00:26.4]} 26... fxe6 {[%clk 0:00:09.7]} 27. Rxe6 {[%clk 0:00:17.9]}
27... Rf2 {[%clk 0:00:10.4]} 28. Rc1 {[%clk 0:00:08.7]} 28... Rxg2 {[%clk
0:00:10.9]} 29. Rb6 {[%clk 0:00:09.9]} 29... Rxh3 {[%clk 0:00:10.6]} 30. Rxb7
{[%clk 0:00:09.9]} 30... Rhg3 {[%clk 0:00:11.3]} 31. c4 {[%clk 0:00:11]} 31...
h3 {[%clk 0:00:11.5]} 32. c5 {[%clk 0:00:12.5]} 32... Rg1 {[%clk 0:00:11.9]} 33.
c6 {[%clk 0:00:14]} 33... Rxc1+ {[%clk 0:00:12.4]} 34. Kxc1 {[%clk 0:00:10.1]}
34... h2 {[%clk 0:00:11.6]} 35. c7 {[%clk 0:00:05.7]} 35... h1=Q+ {[%clk
0:00:12.2]} 36. Kb2 {[%clk 0:00:07.2]} 36... Qxb7+ {[%clk 0:00:13.3]} 0-1

[Event "*** Biggest EVER Titled Tuesday"]
[Site "Chess.com"]
[Date "2018.04.17"]
[Round "10"]
[White "Vamostodorecto"]
[Black "GMMatamoros"]
[Result "0-1"]
[WhiteElo "2380"]
[BlackElo "2510"]
[TimeControl "180+2"]
[EndTime "15:22:39 PDT"]
[Termination "GMMatamoros won by resignation"]

1. d4 {[%clk 0:02:39.5]} 1... Nf6 {[%clk 0:02:51.9]} 2. c4 {[%clk 0:02:39]} 2...
g6 {[%clk 0:02:53.1]} 3. Nc3 {[%clk 0:02:39.4]} 3... Bg7 {[%clk 0:02:54.6]} 4.
e4 {[%clk 0:02:40]} 4... O-O {[%clk 0:02:55.6]} 5. Be2 {[%clk 0:02:40.7]} 5...
d6 {[%clk 0:02:56]} 6. Nf3 {[%clk 0:02:42.1]} 6... e5 {[%clk 0:02:56.7]} 7. O-O
{[%clk 0:02:43.1]} 7... Nc6 {[%clk 0:02:57.9]} 8. d5 {[%clk 0:02:44.2]} 8... Ne7
{[%clk 0:02:59]} 9. Ne1 {[%clk 0:02:45.6]} 9... Nd7 {[%clk 0:02:59.4]} 10. Be3
{[%clk 0:02:47]} 10... f5 {[%clk 0:03:00.8]} 11. f3 {[%clk 0:02:48.4]} 11... f4
{[%clk 0:03:02.2]} 12. Bf2 {[%clk 0:02:49.9]} 12... g5 {[%clk 0:03:03.6]} 13.
Rc1 {[%clk 0:02:46.8]} 13... a6 {[%clk 0:02:57.3]} 14. b4 {[%clk 0:02:39]} 14...
Rf6 {[%clk 0:02:58]} 15. c5 {[%clk 0:02:39.1]} 15... Rh6 {[%clk 0:02:58.9]} 16.
cxd6 {[%clk 0:02:38.2]} 16... cxd6 {[%clk 0:02:59.5]} 17. Nd3 {[%clk 0:02:22.2]}
17... Qe8 {[%clk 0:02:59.7]} 18. Be1 {[%clk 0:02:13.1]} 18... Nf6 {[%clk
0:02:48.7]} 19. Nf2 {[%clk 0:02:09.4]} 19... Bd7 {[%clk 0:02:49.7]} 20. a4
{[%clk 0:02:06]} 20... Rg6 {[%clk 0:02:49.8]} 21. b5 {[%clk 0:02:04.7]} 21... h5
{[%clk 0:02:49]} 22. bxa6 {[%clk 0:02:04.9]} 22... bxa6 {[%clk 0:02:50.9]} 23.
g4 {[%clk 0:01:55.4]} 23... fxg3 {[%clk 0:02:13]} 24. hxg3 {[%clk 0:01:57.2]}
24... g4 {[%clk 0:02:14.4]} 25. fxg4 {[%clk 0:01:52.5]} 25... Bh6 {[%clk
0:02:14.7]} 26. Bd2 {[%clk 0:01:46]} 26... Qf8 {[%clk 0:01:54.8]} 27. Kg2 {[%clk
0:01:44.6]} 27... Qg7 {[%clk 0:01:55]} 28. Bxh6 {[%clk 0:01:40.7]} 28... Qxh6
{[%clk 0:01:54.5]} 29. Rh1 {[%clk 0:01:40.4]} 29... Rf8 {[%clk 0:01:39.5]} 30.
Rb1 {[%clk 0:01:34.6]} 30... Qe3 {[%clk 0:01:13.9]} 31. Qd3 {[%clk 0:01:13.7]}
31... Nfxd5 {[%clk 0:01:06.5]} 32. Qxe3 {[%clk 0:00:34.1]} 32... Nxe3+ {[%clk
0:01:08.4]} 33. Kg1 {[%clk 0:00:32.6]} 33... Nxg4 {[%clk 0:01:05.3]} 34. Bxg4
{[%clk 0:00:31.2]} 34... Bxg4 {[%clk 0:01:03.3]} 35. Rb7 {[%clk 0:00:29.7]}
35... Bc8 {[%clk 0:01:01.1]} 36. Rxe7 {[%clk 0:00:26.8]} 36... Rxg3+ {[%clk
0:01:02]} 37. Kh2 {[%clk 0:00:27.4]} 37... Rxc3 {[%clk 0:01:02.8]} 38. Rg1+
{[%clk 0:00:27.9]} 38... Kh8 {[%clk 0:01:03.7]} 39. Rg2 {[%clk 0:00:27.2]} 39...
Rcf3 {[%clk 0:00:58.9]} 40. Nh1 {[%clk 0:00:25.6]} 40... Rh3+ {[%clk 0:00:49.4]}
41. Kg1 {[%clk 0:00:26.1]} 41... Bg4 {[%clk 0:00:46]} 42. Nf2 {[%clk 0:00:22.4]}
42... Rh4 {[%clk 0:00:44.3]} 43. Ra7 {[%clk 0:00:21.3]} 43... Rc8 {[%clk
0:00:42.8]} 44. Nxg4 {[%clk 0:00:21]} 44... Rc1+ {[%clk 0:00:42.3]} 45. Kf2
{[%clk 0:00:21]} 45... Rc2+ {[%clk 0:00:43]} 46. Kg3 {[%clk 0:00:20.8]} 46...
Rxg4+ {[%clk 0:00:43.5]} 47. Kf3 {[%clk 0:00:15.9]} 47... Rcxg2 {[%clk
0:00:44.2]} 0-1

[Event "*** Biggest EVER Titled Tuesday"]
[Site "Chess.com"]
[Date "2018.04.17"]
[Round "10"]
[White "Orest_Vovk"]
[Black "ABDELAZEEZ-M"]
[Result "1-0"]
[WhiteElo "2266"]
[BlackElo "2295"]
[TimeControl "180+2"]
[EndTime "15:22:43 PDT"]
[Termination "Orest_Vovk won by resignation"]

1. h4 {[%clk 0:03:00.1]} 1... d5 {[%clk 0:02:58.3]} 2. h5 {[%clk 0:03:01.1]}
2... e5 {[%clk 0:02:58.8]} 3. h6 {[%clk 0:03:01.9]} 3... Nxh6 {[%clk 0:02:59.7]}
4. d4 {[%clk 0:03:02.9]} 4... Nf5 {[%clk 0:03:00.2]} 5. dxe5 {[%clk 0:03:03.2]}
5... Nc6 {[%clk 0:02:59.4]} 6. e4 {[%clk 0:03:02]} 6... dxe4 {[%clk 0:02:58.7]}
7. Qxd8+ {[%clk 0:03:01.9]} 7... Nxd8 {[%clk 0:02:59.5]} 8. Nc3 {[%clk 0:03:03]}
8... Bb4 {[%clk 0:02:57.8]} 9. Ne2 {[%clk 0:02:58]} 9... Nc6 {[%clk 0:02:53.2]}
10. g4 {[%clk 0:02:58.9]} 10... Nfd4 {[%clk 0:02:53.2]} 11. Kd1 {[%clk
0:02:46.4]} 11... Bxg4 {[%clk 0:02:52.1]} 12. a3 {[%clk 0:02:39.5]} 12... Bxc3
{[%clk 0:02:50.7]} 13. bxc3 {[%clk 0:02:39.6]} 13... Nf3 {[%clk 0:02:51.2]} 14.
Bf4 {[%clk 0:02:28.5]} 14... O-O-O+ {[%clk 0:02:49.8]} 15. Kc1 {[%clk
0:02:29.1]} 15... Nfxe5 {[%clk 0:02:50.1]} 16. Nd4 {[%clk 0:02:19.9]} 16... Nxd4
{[%clk 0:02:49.3]} 17. Bxe5 {[%clk 0:02:20.8]} 17... Ne6 {[%clk 0:02:46.2]} 18.
Bc4 {[%clk 0:02:20.6]} 18... f6 {[%clk 0:02:45.3]} 19. Rh4 {[%clk 0:02:15.5]}
19... Bf5 {[%clk 0:02:44.6]} 20. Rh5 {[%clk 0:02:09.3]} 20... Bg4 {[%clk
0:02:26.3]} 21. Rh4 {[%clk 0:02:08]} 21... Bf5 {[%clk 0:01:52]} 22. Rh5 {[%clk
0:02:07]} 22... Ng5 {[%clk 0:01:46.3]} 23. Bf4 {[%clk 0:01:49.7]} 23... Bg6
{[%clk 0:01:47]} 24. Rh1 {[%clk 0:01:45.1]} 24... Nf3 {[%clk 0:01:44.3]} 25. Kb2
{[%clk 0:01:38.6]} 25... Ne5 {[%clk 0:01:44.1]} 26. Be6+ {[%clk 0:01:19.5]}
26... Kb8 {[%clk 0:01:43.7]} 27. Rag1 {[%clk 0:01:21.4]} 27... Rhe8 {[%clk
0:01:40.8]} 28. Bb3 {[%clk 0:01:17.1]} 28... c5 {[%clk 0:01:27.4]} 29. Rd1
{[%clk 0:00:58.2]} 29... Kc7 {[%clk 0:01:25.9]} 30. a4 {[%clk 0:00:48.8]} 30...
Kc6 {[%clk 0:01:22.6]} 31. a5 {[%clk 0:00:46.5]} 31... Kb5 {[%clk 0:01:21.9]}
32. Bxe5 {[%clk 0:00:36.5]} 32... fxe5 {[%clk 0:01:19.5]} 33. Ra1 {[%clk
0:00:26.7]} 33... Rd2 {[%clk 0:01:18.8]} 34. Ba4+ {[%clk 0:00:24.2]} 34... Ka6
{[%clk 0:01:19.8]} 35. Bxe8 {[%clk 0:00:24.4]} 35... Bxe8 {[%clk 0:01:21]} 36.
Rxh7 {[%clk 0:00:23.5]} 36... Rxf2 {[%clk 0:01:21.5]} 37. Rxg7 {[%clk 0:00:24]}
37... e3 {[%clk 0:01:22.1]} 38. Re7 {[%clk 0:00:20]} 38... Bg6 {[%clk
0:01:22.9]} 39. Re6+ {[%clk 0:00:20.5]} 39... Kb5 {[%clk 0:01:23.3]} 40. Rxg6
{[%clk 0:00:20.2]} 40... e2 {[%clk 0:01:23.7]} 41. Re1 {[%clk 0:00:20.7]} 41...
Kxa5 {[%clk 0:01:23.4]} 42. Re6 {[%clk 0:00:20.4]} 42... Kb5 {[%clk 0:01:21.4]}
43. Rxe5 {[%clk 0:00:21.3]} 43... a5 {[%clk 0:01:22.4]} 44. R1xe2 {[%clk
0:00:22.5]} 44... Rf4 {[%clk 0:01:23.4]} 45. R2e4 {[%clk 0:00:22.6]} 45... Rf3
{[%clk 0:01:23.9]} 46. Re6 {[%clk 0:00:22.2]} 46... Rf7 {[%clk 0:01:23.3]} 47.
c4+ {[%clk 0:00:22.6]} 47... Ka4 {[%clk 0:01:20.5]} 48. Rb6 {[%clk 0:00:23.3]}
48... Rf1 {[%clk 0:01:15.3]} 49. Rb3 {[%clk 0:00:21.7]} 49... Ra1 {[%clk
0:01:13.8]} 50. Kxa1 {[%clk 0:00:21.2]} 1-0

[Event "*** Biggest EVER Titled Tuesday"]
[Site "Chess.com"]
[Date "2018.04.17"]
[Round "10"]
[White "Cecile-Haussernot"]
[Black "Fins0905"]
[Result "0-1"]
[WhiteElo "2343"]
[BlackElo "2536"]
[TimeControl "180+2"]
[EndTime "15:22:49 PDT"]
[Termination "Fins0905 won by resignation"]

1. e4 {[%clk 0:02:57.7]} 1... d5 {[%clk 0:02:59.5]} 2. exd5 {[%clk 0:02:54.9]}
2... Qxd5 {[%clk 0:03:01.4]} 3. Nc3 {[%clk 0:02:54.8]} 3... Qd8 {[%clk
0:03:02.4]} 4. d4 {[%clk 0:02:55.1]} 4... Nf6 {[%clk 0:03:03.8]} 5. Nf3 {[%clk
0:02:54.4]} 5... Bg4 {[%clk 0:03:03]} 6. h3 {[%clk 0:02:53.5]} 6... Bxf3 {[%clk
0:03:03.9]} 7. Qxf3 {[%clk 0:02:53.9]} 7... c6 {[%clk 0:03:04.8]} 8. Be3 {[%clk
0:02:53.9]} 8... e6 {[%clk 0:03:05.4]} 9. O-O-O {[%clk 0:02:54.9]} 9... Bb4
{[%clk 0:03:05.7]} 10. Ne4 {[%clk 0:02:55.4]} 10... Nxe4 {[%clk 0:03:06.4]} 11.
Qxe4 {[%clk 0:02:56.4]} 11... Qd5 {[%clk 0:03:06.3]} 12. Qxd5 {[%clk 0:02:56.2]}
12... cxd5 {[%clk 0:03:07.1]} 13. Kb1 {[%clk 0:02:55.1]} 13... Nc6 {[%clk
0:02:58]} 14. a3 {[%clk 0:02:55.5]} 14... Bd6 {[%clk 0:02:51.1]} 15. b4 {[%clk
0:02:51.5]} 15... O-O {[%clk 0:02:42.3]} 16. Kb2 {[%clk 0:02:50.7]} 16... a5
{[%clk 0:02:35.6]} 17. b5 {[%clk 0:02:51.2]} 17... Ne7 {[%clk 0:02:36]} 18. a4
{[%clk 0:02:52.2]} 18... Nc8 {[%clk 0:02:08]} 19. Kb3 {[%clk 0:02:50.8]} 19...
Nb6 {[%clk 0:02:07.1]} 20. c3 {[%clk 0:02:46]} 20... Rac8 {[%clk 0:02:01.6]} 21.
Bd3 {[%clk 0:02:46]} 21... Nc4 {[%clk 0:01:53.9]} 22. Bc1 {[%clk 0:02:46.1]}
22... Rc7 {[%clk 0:01:38.3]} 23. Bb1 {[%clk 0:02:35.7]} 23... Rfc8 {[%clk
0:01:34.1]} 24. Bd3 {[%clk 0:02:14]} 24... Nb6 {[%clk 0:01:05.7]} 25. Bb2 {[%clk
0:02:12.1]} 25... e5 {[%clk 0:00:59.8]} 26. Rhe1 {[%clk 0:02:06.5]} 26... e4
{[%clk 0:00:59.8]} 27. Bf1 {[%clk 0:02:05.5]} 27... f5 {[%clk 0:00:59.3]} 28. g4
{[%clk 0:01:58.2]} 28... g6 {[%clk 0:00:58.3]} 29. gxf5 {[%clk 0:01:57.8]} 29...
gxf5 {[%clk 0:01:00.1]} 30. h4 {[%clk 0:01:59.6]} 30... Kf7 {[%clk 0:01:01.1]}
31. h5 {[%clk 0:01:58.7]} 31... Kf6 {[%clk 0:01:00.9]} 32. f3 {[%clk 0:01:52.7]}
32... Rg8 {[%clk 0:00:52.2]} 33. fxe4 {[%clk 0:01:51.8]} 33... fxe4 {[%clk
0:00:48.4]} 34. Bh3 {[%clk 0:01:45]} 34... Rg3 {[%clk 0:00:47.3]} 35. Rf1+
{[%clk 0:01:45.5]} 35... Ke7 {[%clk 0:00:41.5]} 36. Bf5 {[%clk 0:01:46.2]} 36...
Nc4 {[%clk 0:00:36.4]} 37. Rg1 {[%clk 0:01:39.7]} 37... Ne3 {[%clk 0:00:30.6]}
38. Rxg3 {[%clk 0:01:39.4]} 38... Bxg3 {[%clk 0:00:31.9]} 39. Rg1 {[%clk
0:01:39.3]} 39... Nxf5 {[%clk 0:00:32.9]} 40. Bc1 {[%clk 0:01:37.4]} 40... Ke6
{[%clk 0:00:29]} 41. Bd2 {[%clk 0:01:36.9]} 41... Rg7 {[%clk 0:00:27.3]} 42. c4
{[%clk 0:01:37]} 42... e3 {[%clk 0:00:25.6]} 43. Bxa5 {[%clk 0:01:35.5]} 43...
Nxd4+ {[%clk 0:00:24.8]} 44. Kb2 {[%clk 0:01:36]} 44... Nf3 {[%clk 0:00:23.1]}
45. Rf1 {[%clk 0:01:34.5]} 45... Ne5 {[%clk 0:00:18.2]} 46. c5 {[%clk
0:01:33.6]} 46... e2 {[%clk 0:00:18.5]} 47. Rb1 {[%clk 0:01:33.6]} 47... e1=Q
{[%clk 0:00:18.6]} 48. Bxe1 {[%clk 0:01:32.5]} 48... Nd3+ {[%clk 0:00:19.6]} 49.
Kc3 {[%clk 0:01:33.7]} 49... Nxe1 {[%clk 0:00:19.6]} 50. a5 {[%clk 0:01:35.1]}
50... Be5+ {[%clk 0:00:19.3]} 51. Kd2 {[%clk 0:01:35.7]} 51... Nf3+ {[%clk
0:00:20.4]} 52. Ke3 {[%clk 0:01:36.5]} 52... Nd4 {[%clk 0:00:21.6]} 53. a6
{[%clk 0:01:36.1]} 53... bxa6 {[%clk 0:00:22.2]} 54. bxa6 {[%clk 0:01:38]} 54...
Rg3+ {[%clk 0:00:18.1]} 55. Kf2 {[%clk 0:01:38.1]} 55... Ra3 {[%clk 0:00:18.7]}
56. Rb6+ {[%clk 0:01:38.2]} 56... Kf5 {[%clk 0:00:20.1]} 57. c6 {[%clk
0:01:36.5]} 57... Ne6 {[%clk 0:00:13.3]} 58. Ke2 {[%clk 0:01:33.8]} 58... Bc7
{[%clk 0:00:13.1]} 59. Rb5 {[%clk 0:01:33.7]} 59... Nd4+ {[%clk 0:00:14]} 0-1

[Event "*** Biggest EVER Titled Tuesday"]
[Site "Chess.com"]
[Date "2018.04.17"]
[Round "10"]
[White "SilverCat1992"]
[Black "martinique24"]
[Result "1-0"]
[WhiteElo "2082"]
[BlackElo "2280"]
[TimeControl "180+2"]
[EndTime "15:22:50 PDT"]
[Termination "SilverCat1992 won on time"]

1. e4 {[%clk 0:03:01.9]} 1... c5 {[%clk 0:02:32.2]} 2. Nf3 {[%clk 0:03:01.5]}
2... d6 {[%clk 0:02:27]} 3. d4 {[%clk 0:03:01.2]} 3... cxd4 {[%clk 0:02:26.4]}
4. Nxd4 {[%clk 0:03:03.1]} 4... Nf6 {[%clk 0:02:27.4]} 5. Nc3 {[%clk 0:03:04.2]}
5... a6 {[%clk 0:02:05.6]} 6. Bg5 {[%clk 0:03:03.8]} 6... e6 {[%clk 0:01:55.8]}
7. f4 {[%clk 0:03:03.5]} 7... Be7 {[%clk 0:01:35.9]} 8. Qf3 {[%clk 0:03:02.2]}
8... Qc7 {[%clk 0:01:27.8]} 9. O-O-O {[%clk 0:03:01.4]} 9... Nbd7 {[%clk
0:01:25.3]} 10. g4 {[%clk 0:03:01.3]} 10... b5 {[%clk 0:01:23.7]} 11. Bxf6
{[%clk 0:03:00.1]} 11... gxf6 {[%clk 0:01:22.5]} 12. f5 {[%clk 0:02:35.5]} 12...
Nc5 {[%clk 0:01:20.2]} 13. h4 {[%clk 0:02:07.2]} 13... Bb7 {[%clk 0:01:08.3]}
14. fxe6 {[%clk 0:02:06.1]} 14... fxe6 {[%clk 0:00:54.7]} 15. g5 {[%clk
0:01:58.7]} 15... f5 {[%clk 0:00:40.8]} 16. Qh5+ {[%clk 0:01:51]} 16... Kd7
{[%clk 0:00:38.5]} 17. exf5 {[%clk 0:01:03.1]} 17... Bxh1 {[%clk 0:00:35.5]} 18.
fxe6+ {[%clk 0:00:51.6]} 18... Kc8 {[%clk 0:00:23.6]} 19. Bxb5 {[%clk 0:00:43]}
19... axb5 {[%clk 0:00:23.1]} 20. Rxh1 {[%clk 0:00:41.7]} 20... Qb7 {[%clk
0:00:19.9]} 21. Rd1 {[%clk 0:00:31.1]} 21... b4 {[%clk 0:00:20.7]} 22. Ncb5
{[%clk 0:00:29.4]} 22... Rxa2 {[%clk 0:00:09.5]} 23. Qf7 {[%clk 0:00:07]} 23...
Ra1+ {[%clk 0:00:08.4]} 24. Kd2 {[%clk 0:00:08.5]} 24... Rxd1+ {[%clk
0:00:10.3]} 25. Kxd1 {[%clk 0:00:10.4]} 25... Qh1+ {[%clk 0:00:10.7]} 26. Kd2
{[%clk 0:00:11.2]} 26... Qh2+ {[%clk 0:00:11.9]} 27. Kc1 {[%clk 0:00:11.5]}
27... Qg1+ {[%clk 0:00:12.8]} 28. Kd2 {[%clk 0:00:12.3]} 28... Ne4+ {[%clk
0:00:14.3]} 29. Kd3 {[%clk 0:00:13.2]} 29... Nf2+ {[%clk 0:00:14.3]} 30. Kc4
{[%clk 0:00:14.2]} 30... Qf1+ {[%clk 0:00:15.1]} 31. Kd5 {[%clk 0:00:14.5]}
31... Qg2+ {[%clk 0:00:16.5]} 32. Nf3 {[%clk 0:00:14.9]} 32... Rf8 {[%clk
0:00:14.3]} 33. Qxe7 {[%clk 0:00:15.2]} 33... Qxf3+ {[%clk 0:00:15.1]} 34. Kc4
{[%clk 0:00:15.2]} 34... Qe4+ {[%clk 0:00:15.7]} 35. Kb3 {[%clk 0:00:16.7]}
35... Qd5+ {[%clk 0:00:16.1]} 36. Ka4 {[%clk 0:00:17.4]} 36... Qa2+ {[%clk
0:00:15.4]} 37. Kxb4 {[%clk 0:00:14.6]} 37... Qxb2+ {[%clk 0:00:16.7]} 38. Ka5
{[%clk 0:00:15.7]} 38... Qa2+ {[%clk 0:00:09.2]} 39. Kb6 {[%clk 0:00:16.8]} 1-0

[Event "*** Biggest EVER Titled Tuesday"]
[Site "Chess.com"]
[Date "2018.04.17"]
[Round "10"]
[White "Th3ChessViking"]
[Black "AlexZambrano"]
[Result "1/2-1/2"]
[WhiteElo "2378"]
[BlackElo "2354"]
[TimeControl "180+2"]
[EndTime "15:23:18 PDT"]
[Termination "Game drawn by repetition"]

1. c4 {[%clk 0:03:01.6]} 1... e5 {[%clk 0:01:08.6]} 2. g3 {[%clk 0:02:58.2]}
2... Nf6 {[%clk 0:01:08.4]} 3. Bg2 {[%clk 0:03:00.1]} 3... d5 {[%clk 0:01:06.4]}
4. cxd5 {[%clk 0:03:02]} 4... Nxd5 {[%clk 0:01:07.1]} 5. Nf3 {[%clk 0:03:03.9]}
5... Nc6 {[%clk 0:01:02.1]} 6. O-O {[%clk 0:03:03.1]} 6... Nb6 {[%clk
0:01:00.4]} 7. b3 {[%clk 0:02:43.1]} 7... Be7 {[%clk 0:01:02.3]} 8. Bb2 {[%clk
0:02:44.2]} 8... f6 {[%clk 0:00:54.5]} 9. d4 {[%clk 0:02:39.5]} 9... exd4 {[%clk
0:00:53.8]} 10. Nxd4 {[%clk 0:02:35.1]} 10... Nxd4 {[%clk 0:00:54.7]} 11. Bxd4
{[%clk 0:02:34.6]} 11... O-O {[%clk 0:00:55.5]} 12. Nc3 {[%clk 0:02:29.4]} 12...
c6 {[%clk 0:00:56.3]} 13. e4 {[%clk 0:02:26.3]} 13... Be6 {[%clk 0:00:56.7]} 14.
Be3 {[%clk 0:02:26]} 14... Qc8 {[%clk 0:00:53.8]} 15. Re1 {[%clk 0:02:22]} 15...
Bg4 {[%clk 0:00:53.5]} 16. Qc2 {[%clk 0:02:20.9]} 16... Bh3 {[%clk 0:00:53.3]}
17. Bh1 {[%clk 0:02:22]} 17... Rd8 {[%clk 0:00:51.6]} 18. Rad1 {[%clk
0:02:21.2]} 18... Qg4 {[%clk 0:00:52.3]} 19. f3 {[%clk 0:02:20.7]} 19... Qh5
{[%clk 0:00:52.9]} 20. Ne2 {[%clk 0:02:20.9]} 20... Be6 {[%clk 0:00:51.5]} 21.
Nf4 {[%clk 0:02:21]} 21... Qf7 {[%clk 0:00:52.1]} 22. Nxe6 {[%clk 0:02:21.1]}
22... Qxe6 {[%clk 0:00:53.2]} 23. Bg2 {[%clk 0:02:22]} 23... Rxd1 {[%clk
0:00:50.1]} 24. Rxd1 {[%clk 0:02:23.9]} 24... Rd8 {[%clk 0:00:50.4]} 25. Rxd8+
{[%clk 0:02:18.2]} 25... Bxd8 {[%clk 0:00:50.4]} 26. h4 {[%clk 0:02:19]} 26...
Be7 {[%clk 0:00:44.9]} 27. Kh2 {[%clk 0:02:18.1]} 27... Kf8 {[%clk 0:00:40.6]}
28. Bh3 {[%clk 0:02:18.7]} 28... Qe5 {[%clk 0:00:37.9]} 29. Bf4 {[%clk 0:02:16]}
29... Qb5 {[%clk 0:00:32]} 30. Bb8 {[%clk 0:02:10]} 30... a5 {[%clk 0:00:30.8]}
31. Bf4 {[%clk 0:02:06]} 31... a4 {[%clk 0:00:31.2]} 32. Be6 {[%clk 0:02:03.6]}
32... axb3 {[%clk 0:00:29.6]} 33. axb3 {[%clk 0:02:05.5]} 33... Qf1 {[%clk
0:00:25.9]} 34. e5 {[%clk 0:01:58.6]} 34... Qxf3 {[%clk 0:00:21.4]} 35. Bh3
{[%clk 0:01:07]} 35... Nd5 {[%clk 0:00:19.7]} 36. exf6 {[%clk 0:01:04]} 36...
Bxf6 {[%clk 0:00:20.6]} 37. Bd6+ {[%clk 0:01:03.8]} 37... Be7 {[%clk 0:00:20.7]}
38. Bxe7+ {[%clk 0:01:01.4]} 38... Kxe7 {[%clk 0:00:21.8]} 39. Qxh7 {[%clk
0:01:02.1]} 39... Qf2+ {[%clk 0:00:18.9]} 40. Bg2 {[%clk 0:01:00.8]} 40... Qf6
{[%clk 0:00:18.8]} 41. Qg8 {[%clk 0:00:50.1]} 41... Ne3 {[%clk 0:00:17.9]} 42.
Qb8 {[%clk 0:00:49.6]} 42... Ng4+ {[%clk 0:00:17.2]} 43. Kh3 {[%clk 0:00:44.5]}
43... Nf2+ {[%clk 0:00:18.1]} 44. Kh2 {[%clk 0:00:45.5]} 44... Ng4+ {[%clk
0:00:19.1]} 45. Kh3 {[%clk 0:00:32.6]} 45... Nf2+ {[%clk 0:00:19.8]} 46. Kh2
{[%clk 0:00:28.9]} 46... Ng4+ {[%clk 0:00:20.2]} 47. Kh3 {[%clk 0:00:29.2]}
47... Nf2+ {[%clk 0:00:21.2]} 48. Kh2 {[%clk 0:00:29.5]} 48... Ng4+ {[%clk
0:00:22.2]} 49. Kh3 {[%clk 0:00:30.3]} 49... Nf2+ {[%clk 0:00:23.1]} 50. Kh2
{[%clk 0:00:31.3]} 50... Ng4+ {[%clk 0:00:24]} 1/2-1/2

[Event "*** Biggest EVER Titled Tuesday"]
[Site "Chess.com"]
[Date "2018.04.17"]
[Round "10"]
[White "SCIM"]
[Black "GameOverBro"]
[Result "0-1"]
[WhiteElo "2367"]
[BlackElo "2449"]
[TimeControl "180+2"]
[EndTime "15:23:20 PDT"]
[Termination "GameOverBro won by resignation"]

1. d4 {[%clk 0:03:01.9]} 1... d6 {[%clk 0:03:00.8]} 2. e4 {[%clk 0:03:01.1]}
2... Nf6 {[%clk 0:03:02]} 3. f3 {[%clk 0:03:02.1]} 3... e5 {[%clk 0:03:03]} 4.
d5 {[%clk 0:03:01.1]} 4... Be7 {[%clk 0:03:02.7]} 5. Nc3 {[%clk 0:02:54.6]} 5...
c6 {[%clk 0:02:53.2]} 6. Be3 {[%clk 0:02:50.4]} 6... O-O {[%clk 0:02:42.6]} 7.
Qd2 {[%clk 0:02:50.3]} 7... b5 {[%clk 0:02:41.8]} 8. dxc6 {[%clk 0:02:49.2]}
8... b4 {[%clk 0:02:42.8]} 9. Nd5 {[%clk 0:02:45.2]} 9... Nxc6 {[%clk
0:02:43.5]} 10. Nxe7+ {[%clk 0:02:37.9]} 10... Qxe7 {[%clk 0:02:43.3]} 11. O-O-O
{[%clk 0:02:34.7]} 11... Rd8 {[%clk 0:02:43.5]} 12. Bc4 {[%clk 0:02:29.7]} 12...
Be6 {[%clk 0:02:44.3]} 13. Bd5 {[%clk 0:02:30.1]} 13... Bxd5 {[%clk 0:02:36.7]}
14. exd5 {[%clk 0:02:29.3]} 14... Nd4 {[%clk 0:02:33.6]} 15. Bxd4 {[%clk
0:02:27.3]} 15... exd4 {[%clk 0:02:34.5]} 16. Qxd4 {[%clk 0:02:27.8]} 16... a5
{[%clk 0:02:33.6]} 17. Nh3 {[%clk 0:02:27.2]} 17... Qb7 {[%clk 0:02:31.3]} 18.
Kb1 {[%clk 0:02:22.3]} 18... Rdc8 {[%clk 0:02:31.5]} 19. Rhe1 {[%clk 0:02:20.9]}
19... Rc5 {[%clk 0:02:32.4]} 20. Nf4 {[%clk 0:02:20.6]} 20... Rac8 {[%clk
0:02:32.1]} 21. Re2 {[%clk 0:02:18.6]} 21... a4 {[%clk 0:02:33.2]} 22. b3 {[%clk
0:02:14.6]} 22... a3 {[%clk 0:02:30.7]} 23. g4 {[%clk 0:02:09.6]} 23... h6
{[%clk 0:02:29.6]} 24. h4 {[%clk 0:02:08.8]} 24... Qc7 {[%clk 0:02:28.1]} 25.
Rc1 {[%clk 0:02:02.5]} 25... Qb7 {[%clk 0:02:22.3]} 26. Rd2 {[%clk 0:01:51]}
26... Qe7 {[%clk 0:02:14.4]} 27. g5 {[%clk 0:01:50.5]} 27... hxg5 {[%clk
0:02:15.5]} 28. hxg5 {[%clk 0:01:50.5]} 28... Nh7 {[%clk 0:02:16.9]} 29. g6
{[%clk 0:01:50.2]} 29... Nf8 {[%clk 0:02:08.4]} 30. gxf7+ {[%clk 0:01:47.6]}
30... Qxf7 {[%clk 0:02:09.7]} 31. Rh1 {[%clk 0:01:45.7]} 31... Qf5 {[%clk
0:02:06.6]} 32. Rg2 {[%clk 0:01:39.4]} 32... R8c7 {[%clk 0:02:04.3]} 33. Rhg1
{[%clk 0:01:32.3]} 33... Kh8 {[%clk 0:01:31.2]} 34. Qe4 {[%clk 0:01:08]} 34...
Qf6 {[%clk 0:01:24.2]} 35. c4 {[%clk 0:00:55.4]} 35... bxc3 {[%clk 0:01:07.6]}
36. Kc2 {[%clk 0:00:53.8]} 36... Re7 {[%clk 0:01:02.1]} 37. Qd3 {[%clk
0:00:41.8]} 37... Qxf4 {[%clk 0:00:57.1]} 38. Rh1+ {[%clk 0:00:40.2]} 38... Kg8
{[%clk 0:00:57.3]} 39. Rgh2 {[%clk 0:00:41.7]} 39... Re3 {[%clk 0:00:39.7]} 40.
Rh8+ {[%clk 0:00:35.7]} 40... Kf7 {[%clk 0:00:33.5]} 41. Qa6 {[%clk 0:00:37.2]}
41... Qf5+ {[%clk 0:00:32.5]} 42. Kc1 {[%clk 0:00:37.3]} 42... Re7 {[%clk
0:00:28.5]} 43. Qxd6 {[%clk 0:00:17.5]} 43... Rxd5 {[%clk 0:00:20.6]} 44. Qg3
{[%clk 0:00:12.4]} 44... Rd2 {[%clk 0:00:19.7]} 0-1